[Event "Guimaraes Open 2018"]
[Site "Guimaraes"]
[Date "2018.10.07"]
[Round "7"]
[White "Martins, Manuel Jose Lopes"]
[Black "Fidalgo, Daniel Neves"]
[Result "1/2-1/2"]
[ECO "C01"]
[WhiteElo "1751"]
[BlackElo "2018"]
[Annotator "NA"]
[PlyCount "66"]
[EventDate "2018.10.04"]
[EventType "swiss"]
[EventCountry "POR"]
[SourceTitle "playchess.com"]
[Source "ChessBase"]
[SourceQuality "1"]
[TimeControl "5400+30"]

1. e4 {[%emt 0:00:54]} e6 {[%emt 0:00:00]} 2. d4 {[%emt 0:00:11]} d5 {[%emt 0:00:00]} 3. exd5 {[%emt 0:00:38]} exd5 {[%emt 0:00:00]} 4. Bd3 {[%emt 0:00:36]} Bd6 {[%emt 0:00:08]} 5. Ne2 {[%emt 0:01:29]} Ne7 {[%emt 0:00:23]} 6. Bf4 {[%emt 0:01:06]} Bf5 {[%emt 0:01:02]} 7. Bxf5 {[%emt 0:03:27] C01: French: Exchange Variation} (7. O-O O-O 8. c3 c6 9. Bxd6 Qxd6 10. Ng3 Bxd3 11. Qxd3 Nd7 12. Qd1 {½-½ (12) Shanava,K (2516)-Magalashvili,D (2490) Cesme 2017}) 7... Nxf5 {[%emt 0:00:03]} 8. Bxd6 {[%emt 0:03:19]} Nxd6 {[%emt 0:00:24]} 9. Nd2 $146 {[%emt 0:01:01]} ({Predecessor:} 9. Nbc3 c6 10. O-O O-O 11. Re1 Re8 12. Ng3 Nd7 13. Rxe8+ Qxe8 14. Qe1 Qxe1+ 15. Rxe1 {½-½ (31) Egorov,P (2249)-Kravchenko,V (2377) Suzdal 2016}) 9... O-O {[%emt 0:01:21]} 10. O-O {[%emt 0:00:28]} Nd7 {[%emt 0:00:30]} 11. Nf4 {[%emt 0:02:21]} Qg5 {[%emt 0:02:58]} 12. Qf3 {[%emt 0:03:31]} c6 {[%emt 0:00:40]} 13. Rfe1 {[%emt 0:00:49]} Nf5 {[%emt 0:03:21]} 14. c3 {[%emt 0:01:29]} g6 {[%emt 0:02:31]} 15. Re2 {[%emt 0:02:23]} Rae8 {[%emt 0:03:40]} 16. Rae1 {[%emt 0:00:23]} Qd8 {[%emt 0:01:27]} 17. g3 {[%emt 0:06:45]} Rxe2 {[%emt 0:03:36]} 18. Rxe2 {[%emt 0:02:28]} Re8 {[%emt 0:00:21]} 19. Nd3 {[%emt 0:03:34]} Rxe2 {[%emt 0:03:53]} 20. Qxe2 {[%emt 0:00:07]} Qe7 {[%emt 0:00:19]} 21. Qxe7 {[%emt 0:01:10]} Nxe7 {[%emt 0:00:02]} 22. f3 {[%emt 0:00:58]} f6 {[%emt 0:00:23]} 23. Kf2 {[%emt 0:00:18]} Kf7 {[%emt 0:00:39]} 24. Nf1 {[%emt 0:01:00]} Nf5 {[%emt 0:01:29]} 25. Ne3 {[%emt 0:00:19]} Nxe3 {[%emt 0:00:22]} 26. Kxe3 {[%emt 0:00:04]} Ke6 {[%emt 0:00:42]} 27. Nf4+ {[%emt 0:00:39]} Kd6 {[%emt 0:00:27]} 28. h4 {[%emt 0:05:05]} Nb6 {[%emt 0:02:15]} 29. b3 {[%emt 0:00:50]} Nd7 $11 {[%emt 0:00:39]} 30. c4 {[%emt 0:02:22]} Nf8 {[%emt 0:01:17]} 31. c5+ {[%emt 0:04:04]} Ke7 {[%emt 0:00:15]} 32. g4 {[%emt 0:01:19]} Ne6 {[%emt 0:05:25]} 33. Ne2 {[%emt 0:09:02]} Kd7 {[%emt 0:01:39]} 1/2-1/2

[Event "Guimaraes Open 2018"]
[Site "Guimaraes"]
[Date "2018.10.07"]
[Round "7"]
[White "Santos, Jose Miguel Sereno"]
[Black "Barbosa, Paulo Jorge Pereira"]
[Result "1/2-1/2"]
[ECO "B27"]
[WhiteElo "1646"]
[BlackElo "1982"]
[Annotator "NA"]
[PlyCount "79"]
[EventDate "2018.10.04"]
[EventType "swiss"]
[EventCountry "POR"]
[SourceTitle "playchess.com"]
[Source "ChessBase"]
[SourceQuality "1"]
[TimeControl "5400+30"]

1. e4 {[%emt 0:00:00]} c5 {[%emt 0:00:00]} 2. Nf3 {[%emt 0:00:02]} g6 {[%emt 0:00:00]} 3. c3 {[%emt 0:00:13]} Bg7 {[%emt 0:00:00]} 4. d4 {[%emt 0:00:12]} cxd4 {[%emt 0:00:09]} 5. cxd4 {[%emt 0:00:05]} Nf6 {[%emt 0:01:46]} 6. Nc3 {[%emt 0:02:33]} O-O {[%emt 0:00:15] B27: Sicilian: 2 Nf3, unusual Black 2nd moves} 7. Bc4 {[%emt 0:00:17]} (7. Bd3 d6 8. h3 e5 9. dxe5 dxe5 10. O-O Nc6 11. Be3 Be6 12. Bb5 Nh5 13. Bxc6 bxc6 14. Qxd8 Rfxd8 15. Rfd1 a6 16. Ng5 Nf4 17. Nxe6 Nxe6 18. Rxd8+ Rxd8 19. Kf1 f5 20. Rd1 Rxd1+ 21. Nxd1 {1-0 (48) Merry,A (2388)-Aravindh,C (2564) Douglas 2016}) 7... Nxe4 {[%emt 0:00:58]} 8. Nxe4 {[%emt 0:00:09]} d5 {[%emt 0:00:05]} 9. Bxd5 $146 {[%emt 0:00:05]} ({Predecessor:} 9. Bd3 dxe4 10. Bxe4 Nd7 11. Bg5 Nf6 12. Bxf6 Bxf6 13. O-O Qb6 14. Qd2 {0-1 (28) Georgiev,S (2161)-Bonev,T (2260) Teteven 2009}) 9... Qxd5 {[%emt 0:00:12]} 10. Nc3 {[%emt 0:00:03]} Qd8 {[%emt 0:01:48]} 11. h3 {[%emt 0:00:22]} Nc6 {[%emt 0:00:35]} 12. Be3 {[%emt 0:00:16]} Nb4 {[%emt 0:01:43]} 13. a3 {[%emt 0:00:20]} Nd5 {[%emt 0:00:09]} 14. Bg5 {[%emt 0:00:58]} h6 {[%emt 0:06:34]} 15. Bh4 {[%emt 0:00:11]} Qa5 {[%emt 0:04:20]} 16. Qd2 {[%emt 0:02:29]} Be6 {[%emt 0:04:15]} 17. O-O {[%emt 0:00:14]} Nxc3 {[%emt 0:00:30]} 18. bxc3 {[%emt 0:00:08]} g5 {[%emt 0:04:00]} 19. Bg3 {[%emt 0:01:32]} Rac8 {[%emt 0:02:02]} 20. Rfc1 {[%emt 0:01:53]} Rfd8 {[%emt 0:02:35]} 21. Qe3 {[%emt 0:02:32]} Re8 {[%emt 0:14:42]} 22. Be5 $15 {[%emt 0:01:16]} f6 {[%emt 0:02:30]} 23. Bc7 {[%emt 0:02:48]} Qd5 {[%emt 0:00:32]} 24. Bg3 {[%emt 0:01:31]} Bf7 {[%emt 0:06:35]} 25. h4 {[%emt 0:07:14]} Rc6 {[%emt 0:07:17]} 26. hxg5 {[%emt 0:01:04]} hxg5 {[%emt 0:00:34]} 27. Nd2 {[%emt 0:01:05]} b5 {[%emt 0:06:40]} 28. a4 {[%emt 0:01:32]} bxa4 {[%emt 0:01:04]} 29. Rxa4 {[%emt 0:01:15]} Qd7 {[%emt 0:00:24]} 30. Rca1 {[%emt 0:01:15]} Ra8 {[%emt 0:03:08]} 31. c4 {[%emt 0:07:18]} f5 {[%emt 0:04:11]} 32. Be5 {[%emt 0:01:08]} f4 {[%emt 0:01:19]} 33. Qe4 {[%emt 0:00:24]} Bg6 {[%emt 0:01:04]} 34. Qd5+ {[%emt 0:01:17]} Qxd5 {[%emt 0:01:06]} 35. cxd5 {[%emt 0:00:05]} Rc2 {[%emt 0:00:27]} 36. Bxg7 {[%emt 0:00:16]} Kxg7 {[%emt 0:00:42]} 37. Nf3 {[%emt 0:00:05]} g4 {[%emt 0:01:12]} 38. Ne5 {[%emt 0:00:24]} g3 {[%emt 0:00:42]} 39. fxg3 {[%emt 0:00:13]} Be4 {[%emt 0:01:00]} 40. R4a2 {[%emt 0:04:59]} 1/2-1/2

[Event "Guimaraes Open 2018"]
[Site "Guimaraes"]
[Date "2018.10.07"]
[Round "7"]
[White "Navarro Martinez, Victor"]
[Black "Santos, Jose Guilherme Barr"]
[Result "0-1"]
[ECO "B90"]
[WhiteElo "1505"]
[BlackElo "2108"]
[Annotator "NA"]
[PlyCount "78"]
[EventDate "2018.10.04"]
[EventType "swiss"]
[EventCountry "POR"]
[SourceTitle "playchess.com"]
[Source "ChessBase"]
[SourceQuality "1"]
[TimeControl "5400+30"]

1. e4 {[%emt 0:00:00]} c5 {[%emt 0:00:00]} 2. Nf3 d6 {[%emt 0:00:00]} 3. d4 {[%emt 0:00:26]} cxd4 {[%emt 0:00:00]} 4. Nxd4 {[%emt 0:00:10]} Nf6 {[%emt 0:00:00]} 5. Nc3 {[%emt 0:00:03]} a6 {[%emt 0:00:01]} 6. Be3 {[%emt 0:00:37]} e5 {[%emt 0:00:10]} 7. Nf3 {[%emt 0:00:46]} Qc7 {[%emt 0:00:08]} 8. Be2 {[%emt 0:01:59]} Be7 {[%emt 0:00:18] B90: Sizilianisch (Najdorf-Variante, Abweichungen)} 9. O-O {[%emt 0:00:46]} (9. a4 O-O 10. O-O Be6 11. a5 Nbd7 12. Ng5 Bc4 13. Re1 Rfc8 14. Ra4 Bxe2 15. Qxe2 Qc6 16. Rd1 Bd8 17. Nf3 b5 18. axb6 Bxb6 {½-½ (31) Swiercz,D (2649)-Mareco,S (2648) Saint Louis 2017}) 9... b5 {[%emt 0:07:17]} 10. a4 {[%emt 0:03:11]} b4 {[%emt 0:01:02]} 11. Nd5 {[%emt 0:01:55]} Nxd5 {[%emt 0:02:43]} 12. exd5 {[%emt 0:00:14]} Nd7 {[%emt 0:02:11]} 13. a5 {[%emt 0:02:07]} O-O {[%emt 0:00:58]} 14. Qd2 $146 {[%emt 0:01:09]} ({Vorgänger:} 14. Nd2 f5 15. Nc4 f4 16. Bb6 {½-½ (39) Leniart,A (2360)-Nyzhnyk,I (2504) Kiev 2009}) 14... Bb7 {[%emt 0:13:40]} 15. b3 {[%emt 0:02:51]} f5 {[%emt 0:08:09]} 16. Qxb4 {[%emt 0:06:57]} Bxd5 {[%emt 0:02:32]} 17. Rad1 {[%emt 0:02:33]} Rab8 {[%emt 0:12:47]} 18. Qa4 {[%emt 0:02:56]} Be6 {[%emt 0:05:36]} 19. Ng5 {[%emt 0:04:45]} Bxg5 {[%emt 0:00:24]} 20. Bxg5 {[%emt 0:00:09]} Nc5 {[%emt 0:08:51]} 21. Qa2 {[%emt 0:05:02]} d5 {[%emt 0:02:13]} 22. Bc1 {[%emt 0:07:26]} Rfd8 {[%emt 0:01:17]} 23. Ba3 {[%emt 0:02:42]} d4 {[%emt 0:11:44]} 24. Bxc5 {[%emt 0:11:46]} Qxc5 {[%emt 0:00:05]} 25. Ra1 {[%emt 0:00:11]} Qc6 {[%emt 0:03:01]} 26. Rfe1 {[%emt 0:03:51]} Rbc8 {[%emt 0:01:05]} 27. Bxa6 {[%emt 0:02:15]} Qxa6 {[%emt 0:00:41]} 28. Rxe5 {[%emt 0:00:04]} Rd6 {[%emt 0:04:40]} 29. Rae1 {[%emt 0:01:12]} g6 {[%emt 0:03:01]} 30. Qa4 {[%emt 0:03:05]} Bd7 {[%emt 0:02:32]} 31. Qa2 {[%emt 0:01:05]} Qc6 {[%emt 0:02:46]} 32. b4+ {[%emt 0:00:51]} Qc4 {[%emt 0:00:57]} 33. Qxc4+ {[%emt 0:01:38]} (33. Qa3 $142 Bb5 34. Kh1) 33... Rxc4 {[%emt 0:00:03]} 34. b5 {[%emt 0:02:35]} Rxc2 {[%emt 0:00:39]} 35. b6 {[%emt 0:00:43]} d3 {[%emt 0:01:24]} 36. Kf1 {[%emt 0:02:41]} (36. b7 $142 Rb2 37. a6 Rxa6 38. Rd5 Rxb7 39. Rxd3) 36... d2 {[%emt 0:00:06]} 37. Rd1 {[%emt 0:00:24]} Rc1 {[%emt 0:00:20]} 38. Ke2 {[%emt 0:00:11]} Rxd1 {[%emt 0:00:06]} 39. Kxd1 {[%emt 0:00:07]} Ba4+ {[%emt 0:00:02]} 0-1

[Event "Guimaraes Open 2018"]
[Site "Guimaraes"]
[Date "2018.10.07"]
[Round "7"]
[White "Navarro Martinez, Victor"]
[Black "Santos, Jose Miguel Sereno"]
[Result "*"]
[ECO "B90"]
[WhiteElo "1505"]
[BlackElo "1646"]
[Annotator "NA"]
[PlyCount "29"]
[EventDate "2018.10.04"]
[EventType "swiss"]
[EventCountry "POR"]
[SourceTitle "playchess.com"]
[Source "ChessBase"]
[SourceQuality "1"]
[TimeControl "5400+30"]

1. e4 {[%emt 0:00:00]} c5 {[%emt 0:00:00]} 2. Nf3 d6 {[%emt 0:00:00]} 3. d4 {[%emt 0:00:26]} cxd4 {[%emt 0:00:00]} 4. Nxd4 {[%emt 0:00:10]} Nf6 {[%emt 0:00:00]} 5. Nc3 {[%emt 0:00:03]} a6 {[%emt 0:00:01]} 6. Be3 {[%emt 0:00:37]} e5 {[%emt 0:00:10]} 7. Nf3 {[%emt 0:00:46]} Qc7 {[%emt 0:00:08]} 8. Be2 {[%emt 0:01:59]} Be7 {[%emt 0:00:18]} 9. O-O {[%emt 0:00:46]} b5 {[%emt 0:07:17]} 10. a4 {[%emt 0:03:11]} b4 {[%emt 0:01:02]} 11. Nd5 {[%emt 0:01:55]} Nxd5 {[%emt 0:02:43]} 12. exd5 {[%emt 0:00:14]} Nd7 {[%emt 0:02:11]} 13. a5 {[%emt 0:02:07]} O-O {[%emt 0:00:58]} 14. Qd2 {[%emt 0:01:09]} Bb7 {[%emt 0:13:40]} 15. b3 {[%emt 0:02:51]} *

[Event "Guimaraes Open 2018"]
[Site "Guimaraes"]
[Date "2018.10.07"]
[Round "7"]
[White "Ribeiro, Orlando Camilo Duar"]
[Black "Marques, Ricardo Taborda Tri"]
[Result "0-1"]
[ECO "C54"]
[WhiteElo "1461"]
[BlackElo "1881"]
[Annotator "NA"]
[PlyCount "52"]
[EventDate "2018.10.04"]
[EventType "swiss"]
[EventCountry "POR"]
[SourceTitle "playchess.com"]
[Source "ChessBase"]
[SourceQuality "1"]
[TimeControl "5400+30"]

1. e4 {[%emt 0:00:38]} e5 {[%emt 0:00:00]} 2. Nf3 {[%emt 0:01:01]} Nc6 {[%emt 0:00:00]} 3. Bc4 {[%emt 0:00:32]} Bc5 {[%emt 0:00:00]} 4. c3 {[%emt 0:00:08]} Nf6 {[%emt 0:00:00]} 5. d3 {[%emt 0:00:06]} d6 {[%emt 0:00:12]} 6. Bb3 {[%emt 0:00:18]} a6 {[%emt 0:00:06]} 7. h3 {[%emt 0:00:38]} Ba7 {[%emt 0:00:07]} 8. Nbd2 {[%emt 0:00:11]} O-O {[%emt 0:00:20]} 9. Nf1 {[%emt 0:00:06]} d5 {[%emt 0:00:18]} 10. Qe2 {[%emt 0:01:14]} dxe4 {[%emt 0:09:28]} 11. dxe4 {[%emt 0:00:02]} Nd7 {[%emt 0:00:11]} 12. Bg5 {[%emt 0:04:35]} Qe8 {[%emt 0:00:34]} 13. Be3 {[%emt 0:00:48]} Nc5 {[%emt 0:03:57]} 14. Bxc5 {[%emt 0:01:56]} Bxc5 {[%emt 0:00:04]} 15. g4 {[%emt 0:00:19]} Be6 {[%emt 0:03:58]} 16. Bc2 {[%emt 0:00:23]} Rd8 {[%emt 0:06:52]} 17. Ng3 {[%emt 0:00:39]} f6 {[%emt 0:04:44]} 18. Bb3 Bxb3 {[%emt 0:00:20]} 19. axb3 {[%emt 0:03:17]} Qe6 {[%emt 0:00:29]} 20. Qc4 {[%emt 0:00:49]} Qxc4 {[%emt 0:00:08]} 21. bxc4 {[%emt 0:00:08]} a5 {[%emt 0:01:21]} 22. b3 {[%emt 0:00:45]} Rd3 {[%emt 0:00:24]} 23. Ke2 {[%emt 0:01:28]} Rxc3 {[%emt 0:00:24]} 24. Rab1 {[%emt 0:00:34]} Rc2+ {[%emt 0:00:35]} 25. Nd2 {[%emt 0:00:35]} Rd8 {[%emt 0:00:41]} 26. Ngf1 {[%emt 0:00:45]} Bb4 {[%emt 0:00:33]} 0-1

[Event "Guimaraes Open 2018"]
[Site "Guimaraes"]
[Date "2018.10.07"]
[Round "7"]
[White "Lopes, Pedro Afonso Pinto"]
[Black "Gawle, Ireneusz"]
[Result "0-1"]
[ECO "D70"]
[WhiteElo "1457"]
[BlackElo "1800"]
[Annotator "NA"]
[PlyCount "58"]
[EventDate "2018.10.04"]
[EventType "swiss"]
[EventCountry "POR"]
[SourceTitle "playchess.com"]
[Source "ChessBase"]
[SourceQuality "1"]
[TimeControl "5400+30"]

1. d4 {[%emt 0:00:00]} Nf6 {[%emt 0:00:00]} 2. c4 {[%emt 0:00:00]} g6 {[%emt 0:00:00]} 3. Nf3 {[%emt 0:00:19]} Bg7 {[%emt 0:00:00]} 4. Nc3 {[%emt 0:00:17]} O-O {[%emt 0:00:00]} 5. Bg5 {[%emt 0:00:12]} d6 {[%emt 0:00:04]} 6. e3 {[%emt 0:00:25]} c5 {[%emt 0:01:37]} 7. d5 {[%emt 0:00:47]} Qa5 {[%emt 0:04:02]} 8. Bd3 {[%emt 0:02:05]} b5 {[%emt 0:02:09]} 9. O-O {[%emt 0:00:45]} bxc4 {[%emt 0:01:08]} 10. Bxc4 {[%emt 0:01:28]} h6 {[%emt 0:04:06]} 11. Bh4 {[%emt 0:03:44]} Bg4 {[%emt 0:11:34]} 12. h3 {[%emt 0:11:27]} Qb4 {[%emt 0:06:17]} 13. hxg4 {[%emt 0:04:25]} Qxc4 {[%emt 0:00:04]} 14. Bxf6 {[%emt 0:00:18]} Bxf6 {[%emt 0:00:42]} 15. Nd2 {[%emt 0:00:50]} Qb4 {[%emt 0:01:55]} 16. Qb3 {[%emt 0:01:35]} Na6 {[%emt 0:06:20]} 17. Nce4 {[%emt 0:03:09]} Bxb2 18. Qxb4 {[%emt 0:07:08]} Nxb4 {[%emt 0:03:14]} 19. Rab1 {[%emt 0:00:15]} Bg7 {[%emt 0:00:36]} 20. a3 {[%emt 0:01:05]} Nxd5 {[%emt 0:02:58]} 21. Rb7 {[%emt 0:00:56]} Rfb8 {[%emt 0:08:57]} 22. Rfb1 {[%emt 0:01:19]} Rxb7 {[%emt 0:00:43]} 23. Rxb7 {[%emt 0:00:02]} Rc8 {[%emt 0:05:09]} 24. Nc4 {[%emt 0:02:39]} Rc7 {[%emt 0:00:15]} 25. Nexd6 {[%emt 0:07:22]} exd6 {[%emt 0:00:16]} 26. Rb8+ Kh7 {[%emt 0:00:24]} 27. Rd8 {[%emt 0:08:47]} Nb6 {[%emt 0:01:45]} 28. Nxd6 {[%emt 0:01:45]} c4 {[%emt 0:00:10]} 29. Ne8 {[%emt 0:00:52]} c3 {[%emt 0:00:32]} 0-1

[Event "Guimaraes Open 2018"]
[Site "Guimaraes"]
[Date "2018.10.07"]
[Round "7"]
[White "Mendes, Bruno Daniel Duraes"]
[Black "Silva, Tiago Alexandre Pin"]
[Result "0-1"]
[ECO "B44"]
[WhiteElo "1382"]
[BlackElo "1757"]
[Annotator "NA"]
[PlyCount "100"]
[EventDate "2018.10.04"]
[EventType "swiss"]
[EventCountry "POR"]
[SourceTitle "playchess.com"]
[Source "ChessBase"]
[SourceQuality "1"]
[TimeControl "5400+30"]

1. e4 {[%emt 0:00:00]} c5 {[%emt 0:00:00]} 2. Nf3 {[%emt 0:00:00]} e6 {[%emt 0:00:00]} 3. d4 {[%emt 0:00:02]} cxd4 {[%emt 0:00:00]} 4. Nxd4 {[%emt 0:00:07]} Nc6 {[%emt 0:00:00]} 5. Be2 {[%emt 0:04:17]} Qc7 {[%emt 0:00:12]} 6. Be3 {[%emt 0:03:16]} Nf6 {[%emt 0:02:15]} 7. Nd2 {[%emt 0:01:39]} a6 {[%emt 0:03:04]} 8. f4 {[%emt 0:04:33]} d6 {[%emt 0:00:38]} 9. Bf3 {[%emt 0:05:52]} Bd7 {[%emt 0:01:48]} 10. N2b3 {[%emt 0:03:18]} Rc8 {[%emt 0:00:51]} 11. c3 {[%emt 0:03:56]} Be7 {[%emt 0:02:16]} 12. O-O {[%emt 0:02:52]} O-O {[%emt 0:01:16]} 13. Rf2 {[%emt 0:03:59]} Rfd8 {[%emt 0:01:41]} 14. Rd2 {[%emt 0:03:43]} b5 {[%emt 0:07:59]} 15. a3 {[%emt 0:01:21]} e5 {[%emt 0:09:52]} 16. Ne2 {[%emt 0:08:04]} Ng4 {[%emt 0:05:14]} 17. Bxg4 {[%emt 0:01:19]} Bxg4 {[%emt 0:00:01]} 18. h3 {[%emt 0:03:19]} Be6 {[%emt 0:03:07]} 19. Nec1 {[%emt 0:06:31]} exf4 {[%emt 0:05:38]} 20. Bxf4 {[%emt 0:00:19]} Ne5 {[%emt 0:00:28]} 21. Bxe5 {[%emt 0:04:56]} dxe5 {[%emt 0:02:08]} 22. Qf3 {[%emt 0:02:44]} Qb6+ {[%emt 0:03:51]} 23. Kh2 {[%emt 0:00:30]} a5 {[%emt 0:00:53]} 24. Rf2 {[%emt 0:06:15]} Bg5 {[%emt 0:03:29]} 25. Rb1 {[%emt 0:02:55]} a4 {[%emt 0:03:50]} 26. Na1 {[%emt 0:00:18]} Rd1 {[%emt 0:07:42]} 27. Qxd1 {[%emt 0:02:59]} Qxf2 {[%emt 0:01:17]} 28. Nd3 {[%emt 0:00:21]} Bf4+ {[%emt 0:01:20]} 29. Nxf4 {[%emt 0:00:36]} Qxf4+ {[%emt 0:00:01]} 30. Kg1 {[%emt 0:01:16]} Qxe4 {[%emt 0:00:29]} 31. Qc2 {[%emt 0:00:33]} Qe3+ {[%emt 0:01:23]} 32. Qf2 {[%emt 0:02:01]} Qxf2+ {[%emt 0:00:38]} 33. Kxf2 {[%emt 0:00:05]} Rd8 {[%emt 0:00:09]} 34. Re1 {[%emt 0:00:55]} Rd2+ {[%emt 0:00:52]} 35. Re2 {[%emt 0:00:26]} Rxe2+ {[%emt 0:00:44]} 36. Kxe2 {[%emt 0:00:08]} Kf8 {[%emt 0:02:32]} 37. Nc2 {[%emt 0:01:54]} f5 {[%emt 0:01:45]} 38. h4 {[%emt 0:00:20]} Ke7 {[%emt 0:00:30]} 39. g3 {[%emt 0:00:49]} Kd6 {[%emt 0:00:16]} 40. Ne3 {[%emt 0:01:30]} h6 {[%emt 0:00:36]} 41. Kd3 {[%emt 0:00:28]} g5 {[%emt 0:00:51]} 42. hxg5 {[%emt 0:00:20]} hxg5 {[%emt 0:00:01]} 43. c4 {[%emt 0:00:47]} f4 {[%emt 0:00:36]} 44. gxf4 {[%emt 0:00:22]} exf4 {[%emt 0:00:46]} 45. c5+ {[%emt 0:02:14]} Kxc5 {[%emt 0:00:27]} 46. Nd1 {[%emt 0:00:14]} Bf5+ {[%emt 0:00:16]} 47. Kc3 {[%emt 0:00:24]} g4 {[%emt 0:00:12]} 48. Nf2 {[%emt 0:00:38]} g3 {[%emt 0:00:09]} 49. Nd3+ {[%emt 0:00:28]} Bxd3 {[%emt 0:00:02]} 50. Kxd3 {[%emt 0:00:08]} g2 {[%emt 0:00:05]} 0-1

[Event "Guimaraes Open 2018"]
[Site "Guimaraes"]
[Date "2018.10.07"]
[Round "7"]
[White "Paiva, Rodrigo Garcia"]
[Black "Cordeiro, Joao Carlos Santos "]
[Result "1/2-1/2"]
[ECO "D35"]
[WhiteElo "1188"]
[BlackElo "1792"]
[Annotator "NA"]
[PlyCount "96"]
[EventDate "2018.10.04"]
[EventType "swiss"]
[EventCountry "POR"]
[SourceTitle "playchess.com"]
[Source "ChessBase"]
[SourceQuality "1"]
[TimeControl "5400+30"]

1. d4 {[%emt 0:00:00]} Nf6 {[%emt 0:00:43]} 2. c4 {[%emt 0:00:00]} e6 {[%emt 0:03:00]} 3. Nc3 {[%emt 0:00:10]} d5 {[%emt 0:00:07]} 4. cxd5 {[%emt 0:00:10]} exd5 {[%emt 0:00:05]} 5. Bg5 {[%emt 0:00:11]} Be7 {[%emt 0:01:04]} 6. e3 {[%emt 0:00:17]} c6 {[%emt 0:00:53]} 7. Bd3 {[%emt 0:00:25]} O-O {[%emt 0:02:02]} 8. Nf3 {[%emt 0:00:09]} Nbd7 {[%emt 0:01:53]} 9. O-O {[%emt 0:00:57]} h6 {[%emt 0:00:51]} 10. Bh4 {[%emt 0:00:15]} Re8 {[%emt 0:00:53]} 11. Qc2 {[%emt 0:00:09]} Nf8 {[%emt 0:06:29]} 12. Rab1 {[%emt 0:03:49]} a5 {[%emt 0:03:56]} 13. a3 {[%emt 0:00:58]} g6 {[%emt 0:07:34]} 14. b4 {[%emt 0:04:13]} axb4 {[%emt 0:00:42]} 15. axb4 {[%emt 0:00:07]} Nh5 {[%emt 0:03:08]} 16. Bxe7 {[%emt 0:00:45]} Qxe7 {[%emt 0:00:07]} 17. b5 {[%emt 0:00:39]} Kg7 {[%emt 0:10:34]} 18. bxc6 {[%emt 0:00:22]} bxc6 {[%emt 0:00:04]} 19. Ne5 {[%emt 0:00:07]} Bd7 {[%emt 0:07:34]} 20. Rb7 {[%emt 0:00:53]} Qd6 {[%emt 0:02:40]} 21. Ne2 {[%emt 0:04:16]} Reb8 {[%emt 0:03:37]} 22. Rfb1 {[%emt 0:02:11]} Rxb7 {[%emt 0:01:15]} 23. Rxb7 {[%emt 0:02:13]} Ra1+ {[%emt 0:02:34]} 24. Rb1 {[%emt 0:01:02]} Rxb1+ {[%emt 0:00:12]} 25. Qxb1 {[%emt 0:00:07]} c5 {[%emt 0:07:44]} 26. Nf3 {[%emt 0:04:58]} c4 {[%emt 0:06:16]} 27. Bc2 {[%emt 0:00:49]} Bg4 {[%emt 0:01:33]} 28. Nc3 {[%emt 0:02:09]} Bxf3 {[%emt 0:00:48]} 29. gxf3 {[%emt 0:00:10]} Nf6 {[%emt 0:00:18]} 30. Qd1 {[%emt 0:01:10]} Ne6 {[%emt 0:00:41]} 31. Ne2 {[%emt 0:00:16]} Ng5 {[%emt 0:04:01]} 32. Ng3 {[%emt 0:01:26]} Ne6 {[%emt 0:04:03]} 33. Ne2 {[%emt 0:00:36]} Nd7 {[%emt 0:03:14]} 34. e4 {[%emt 0:00:56]} Nb6 {[%emt 0:01:46]} 35. e5 {[%emt 0:00:41]} Qb4 {[%emt 0:00:49]} 36. f4 {[%emt 0:00:42]} f5 {[%emt 0:07:02]} 37. Qb1 {[%emt 0:00:35]} Qxb1+ {[%emt 0:00:30]} 38. Bxb1 {[%emt 0:00:11]} Kf7 {[%emt 0:00:38]} 39. Kg2 {[%emt 0:00:12]} Nc7 {[%emt 0:01:26]} 40. Nc3 {[%emt 0:00:14]} Ke6 {[%emt 0:00:54]} 41. Kf3 {[%emt 0:00:06]} Na6 {[%emt 0:02:05]} 42. h4 {[%emt 0:01:09]} Nb4 {[%emt 0:01:37]} 43. Ke3 {[%emt 0:00:18]} Nc6 {[%emt 0:00:54]} 44. Nb5 {[%emt 0:00:10]} Na5 {[%emt 0:01:28]} 45. Bc2 {[%emt 0:00:56]} Nb7 {[%emt 0:00:52]} 46. f3 {[%emt 0:02:44]} Kd7 {[%emt 0:00:24]} 47. Kd2 {[%emt 0:00:05]} Kc6 {[%emt 0:00:33]} 48. Nc3 {[%emt 0:00:27]} Nd8 {[%emt 0:01:22]} 1/2-1/2